bitfinex/quotes_ETHUSD_20240717
["timestamp","ask_amount","ask_price","bid_price","bid_amount"]
[1721235679399,0.61458384,3407.2,3407.1,5.87008]
[1721235679602,0.61458384,3407.5,3407.0,2.93513]
[1721235679811,0.61458384,3407.6,3407.4,2.93478]
[1721235680215,0.61458384,3407.5,3407.4,2.93478]
[1721235681108,0.91289738,3407.6,3407.4,2.93478]
[1721235681311,0.91289738,3407.6,3407.2,2.93494]
[1721235681609,0.61518455,3407.4,3407.3,2.93487]
[1721235682169,0.61518455,3407.4,3407.3,3.5724815]
[1721235682409,0.61518455,3407.5,3407.4,2.93478]
[1721235682571,0.61518455,3407.5,3407.3,2.93487]
[1721235682772,0.61518455,3407.4,3407.3,2.93487]
[1721235683196,0.61518455,3407.5,3407.4,8.26006]
[1721235683503,0.61518455,3407.7,3407.6,2.93461]
[1721235684498,0.61502116,3407.7,3407.6,2.93461]
[1721235685068,0.61502116,3407.7,3407.4,5.86956]
[1721235685274,0.61502116,3407.6,3407.5,2.9347]
[1721235685498,0.61502116,3407.6,3407.4,2.93478]
[1721235686301,0.61502116,3407.6,3407.4,2.93471]
[1721235686606,0.61502116,3407.7,3407.5,2.93467]
[1721235687572,0.61502116,3407.7,3407.3,2.9348]
[1721235687789,0.61502116,3407.7,3407.3,5.8696]
[1721235688107,0.61502116,3407.6,3407.4,2.93476]
[1721235688311,0.61502116,3407.7,3407.4,2.93476]
[1721235688473,0.61502116,3407.6,3407.4,2.93476]
[1721235688672,0.61502116,3407.7,3407.4,2.93476]
[1721235689682,0.61502116,3407.8,3407.4,2.93476]
[1721235690002,0.61502116,3407.7,3407.4,2.93476]
[1721235690374,0.91289738,3407.9,3407.4,2.93476]
[1721235690375,0.61502116,3407.8,3407.4,2.93476]
[1721235690702,0.61502116,3407.8,3407.5,2.93468]
[1721235691207,0.61502116,3407.8,3407.1,5.43380498]
[1721235691423,3.54948116,3407.8,3406.9,0.597365]
[1721235691590,0.61502116,3407.6,3407.0,2.2925]
[1721235691783,0.61502116,3407.6,3407.3,2.93485]
[1721235692115,0.61502116,3407.6,3407.3,2.93479]
[1721235692314,0.61502116,3407.7,3407.3,2.93479]
[1721235692474,0.61502116,3407.8,3407.4,2.93478]
[1721235692681,0.91289738,3407.9,3407.5,2.93463]
[1721235692682,0.61502116,3407.7,3407.5,2.93463]
[1721235693082,0.61502116,3407.8,3407.5,2.93463]
[1721235693280,0.61502116,3407.8,3407.4,2.93476]
[1721235694006,0.61502116,3407.8,3407.5,2.93469]
[1721235694204,0.61502116,3407.8,3407.6,2.93461]
[1721235695719,0.61502116,3407.8,3407.2,5.8698]
[1721235695886,0.61502116,3407.8,3407.4,2.93477]
[1721235696087,3.84722738,3408.0,3407.4,2.93477]
[1721235696088,0.61502116,3407.7,3407.4,2.93477]
[1721235697822,0.61502116,3407.8,3407.4,2.93477]
[1721235698021,0.61502116,3407.8,3407.5,2.93469]
[1721235698508,0.91289738,3408.0,3407.5,2.93469]
[1721235698509,0.61502116,3407.9,3407.5,2.93469]
[1721235698700,0.61502116,3407.9,3407.7,2.93452]
[1721235701028,0.61502116,3407.9,3407.4,2.93478]
[1721235701327,0.61502116,3407.9,3407.5,2.93464]
[1721235701531,0.61502116,3407.9,3407.6,2.93461]
[1721235701718,0.61502116,3407.8,3407.6,2.93461]
[1721235702236,0.91289738,3408.0,3407.6,2.93461]
[1721235702237,0.61502116,3407.9,3407.6,2.93455]
[1721235702408,0.61502116,3407.9,3407.3,2.93481]
[1721235702624,0.61502116,3407.9,3407.8,2.93444]
[1721235703041,0.61502116,3408.0,3407.9,2.93435]
[1721235703554,3.8063836,3408.5,3407.9,2.93435]
[1721235703555,0.61502116,3408.5,3407.9,5.47135]
[1721235703713,0.61502116,3408.5,3408.0,0.793155]
[1721235704036,0.61502116,3408.5,3407.4,0.293481]
[1721235704037,0.61502116,3408.5,3407.8,2.93442]
[1721235704038,3.09582116,3408.4,3407.8,2.93442]
[1721235704240,0.61502116,3408.1,3407.8,2.93442]
[1721235704552,0.61502116,3408.1,3407.8,2.93443]
[1721235704914,0.61502116,3408.1,3407.6,2.93457]
[1721235705122,0.61502116,3408.0,3407.6,2.93457]
[1721235705323,0.61502116,3408.0,3407.7,2.93452]
[1721235705545,0.61502116,3408.0,3407.8,2.93441]
[1721235705740,0.61502116,3408.1,3407.8,2.93441]
[1721235706153,0.61502116,3408.1,3408.0,5.86854]
[1721235706454,0.61502116,3408.2,3408.1,2.93418]
[1721235708124,0.61502116,3408.3,3408.2,2.9341]
[1721235708328,0.61502116,3408.4,3408.2,2.9341]
[1721235708558,0.61502116,3408.3,3407.9,2.93435]
[1721235708764,0.61502116,3408.3,3407.8,2.93442]
[1721235708940,0.61502116,3408.1,3407.9,2.93435]
[1721235709337,1.21719651,3408.4,3407.7,2.93449]
[1721235709338,0.61502116,3408.2,3407.7,2.93449]
[1721235709537,0.61502116,3408.2,3407.8,2.93444]
[1721235710276,0.61502116,3408.1,3407.8,2.93444]
[1721235710579,0.61502116,3408.2,3407.8,2.93444]
[1721235710737,0.61502116,3408.2,3408.1,2.93418]
[1721235711376,0.61502116,3408.3,3408.2,2.9341]
[1721235711532,0.61502116,3408.4,3408.2,2.9341]
[1721235713171,0.61502116,3408.4,3408.0,2.9342]
[1721235714034,0.91289738,3408.5,3408.0,2.9342]
[1721235714035,0.61502116,3408.3,3408.0,2.9342]
[1721235714235,0.61502116,3408.4,3407.6,2.93461]
[1721235714447,0.61502116,3408.4,3408.3,2.93401]
[1721235715563,0.61502116,3408.5,3408.3,2.93401]
[1721235715842,0.61502116,3408.5,3408.4,2.93392]
[1721235716160,0.61315862,3408.5,3408.4,2.93392]
[1721235716661,0.76120632,3408.6,3408.4,2.93392]
[1721235716868,0.76120632,3408.6,3408.5,2.93384]
[1721235718564,0.76120632,3408.6,3408.3,5.86796]
[1721235718764,0.76120632,3408.6,3408.4,2.9339]
[1721235719003,0.61315862,3408.5,3408.2,2.93402]
[1721235719205,0.61315862,3408.5,3408.1,2.93414]
[1721235719407,0.61315862,3408.5,3408.1,2.93411]
[1721235719408,0.61315862,3408.3,3408.1,2.93411]
[1721235719606,0.61315862,3408.3,3408.1,2.93412]
[1721235720220,0.61315862,3408.3,3408.1,2.93413]
[1721235720435,0.61315862,3408.3,3407.5,2.2815]
[1721235720436,2.93414,3408.2,3407.4,2.93472]
[1721235720728,2.93414,3408.2,3407.6,2.93461]
[1721235720729,3.54729862,3408.2,3407.6,2.93461]
[1721235721012,3.54729862,3408.2,3407.1,2.2815]
[1721235721013,0.61315862,3408.0,3407.3,2.93485]
[1721235721171,0.61315862,3408.0,3407.4,2.93475]
[1721235721391,0.61315862,3407.9,3407.2,2.93492]
[1721235721801,0.61315862,3407.8,3407.2,3.456562]
[1721235722105,0.91289738,3408.0,3407.5,2.93469]
[1721235722106,0.61315862,3407.9,3407.5,2.93469]
[1721235722607,0.91289738,3408.0,3407.5,2.93469]
[1721235722608,0.61315862,3407.8,3407.7,2.93453]
[1721235722900,0.61315862,3407.9,3407.7,2.93453]
[1721235723820,0.61315862,3407.9,3407.8,2.93444]
[1721235724107,0.61315862,3407.9,3407.8,3.521347]
[1721235724526,0.61315862,3407.9,3407.8,8.940987]
[1721235724685,0.91289738,3408.1,3408.0,2.93427]
[1721235724686,0.61315862,3408.1,3408.0,2.93427]
[1721235725572,3.58339651,3408.4,3408.0,2.93427]
[1721235725573,0.91289738,3408.2,3408.0,2.93427]
[1721235725769,0.91289738,3408.2,3407.8,2.93437]
[1721235726096,0.61397622,3408.0,3407.9,2.93435]
[1721235726483,0.61397622,3408.0,3407.9,6.455572]
[1721235726822,0.61397622,3408.1,3408.0,5.86854]
[1721235727175,0.61397622,3408.2,3408.1,2.93418]
[1721235728438,0.61397622,3408.2,3408.1,8.15006]
[1721235728641,0.61397622,3408.5,3408.3,2.93401]
[1721235728793,0.61397622,3408.5,3408.0,2.93426]
[1721235729127,1.06094508,3408.6,3407.0,3.78235988]
[1721235729128,0.91289738,3408.1,3407.0,3.78235988]
[1721235729328,1.21719651,3408.2,3407.0,3.78235988]
[1721235729329,0.61365748,3407.9,3407.8,2.93444]
[1721235729494,0.92048622,3408.0,3407.7,2.93452]
[1721235729495,0.61365748,3408.0,3407.9,2.93435]
[1721235730016,0.61365748,3408.0,3407.7,2.93452]
[1721235730234,0.61365748,3408.0,3407.3,2.93486]
[1721235730388,0.61365748,3408.0,3407.1,2.93498]
[1721235730389,0.61365748,3407.7,3407.1,2.93498]
[1721235730585,0.61365748,3407.6,3407.2,2.93493]
[1721235730820,0.61365748,3407.5,3407.2,2.93493]
[1721235730990,0.61365748,3407.5,3406.9,2.93518]
[1721235731195,0.61365748,3407.4,3406.9,2.93518]
[1721235731509,0.92048622,3407.5,3407.0,2.93507]
[1721235731510,0.61365748,3407.3,3407.0,2.93507]
[1721235731704,0.61365748,3407.3,3406.9,2.93518]
[1721235732235,1.21719651,3407.6,3406.9,2.93518]
[1721235732236,0.61365748,3407.2,3406.9,2.93518]
[1721235732620,0.61365748,3407.3,3407.0,2.9351]
[1721235733717,0.61365748,3407.3,3406.8,2.93524]
[1721235733934,0.61365748,3407.2,3406.8,2.93524]
[1721235734345,0.61365748,3407.2,3406.4,2.4614]
[1721235734645,0.61365748,3407.2,3406.7,2.93538]
[1721235734869,0.61365748,3407.0,3406.6,2.93544]
[1721235735009,0.61365748,3407.0,3406.7,2.93538]
[1721235735417,0.61365748,3407.1,3406.7,2.93538]
[1721235735843,0.61365748,3407.2,3406.7,2.93538]
[1721235736046,0.61365748,3407.1,3406.7,2.93538]
[1721235736555,0.61365748,3407.2,3406.7,2.93538]
[1721235736753,0.61365748,3407.2,3406.8,2.93528]
[1721235737045,0.61365748,3407.2,3406.2,3.0]
[1721235737251,0.61365748,3407.2,3406.6,2.93542]
[1721235737424,0.61365748,3407.2,3406.7,2.93539]
[1721235738228,0.61365748,3407.2,3406.5,2.93549]
[1721235738426,0.61365748,3407.2,3406.3,2.9357]
[1721235738652,0.61365748,3407.2,3406.2,3.0]
[1721235738653,0.61365748,3407.0,3406.2,3.0]
[1721235738828,0.61365748,3407.0,3406.4,2.93564]
[1721235739465,3.54870748,3407.1,3406.4,2.93557]
[1721235739653,0.61365748,3407.1,3406.5,2.93554]
[1721235739960,6.21885622,3407.3,3406.5,2.93554]
[1721235739961,3.54862748,3407.2,3406.5,2.93554]
[1721235740151,0.61365748,3407.2,3406.5,2.93554]
[1721235740349,0.61365748,3407.2,3407.0,2.93507]
[1721235740560,0.92048622,3407.4,3407.1,2.93504]
[1721235740561,0.61365748,3407.4,3407.1,2.93504]
[1721235740763,0.61365748,3407.6,3407.1,2.93504]
[1721235740941,0.61365748,3407.6,3407.2,2.93495]
[1721235741137,0.61365748,3407.6,3407.0,2.93506]
[1721235741339,0.61365748,3407.6,3407.0,3.458696]
[1721235741524,0.61365748,3407.6,3407.2,2.93495]
[1721235741726,2.93905748,3407.7,3407.2,2.93495]
[1721235742629,0.61365748,3407.7,3407.2,2.93495]
[1721235743232,0.61365748,3407.7,3407.3,2.93485]
[1721235743667,0.61365748,3407.7,3407.4,2.93477]
[1721235744060,0.61365748,3407.9,3407.6,2.93461]
[1721235744355,0.92048622,3408.0,3407.6,2.93461]
[1721235744356,0.61365748,3408.0,3407.6,2.93461]
[1721235745167,0.61365748,3408.1,3407.7,2.9345]
[1721235745644,0.61365748,3408.2,3407.7,2.9345]
[1721235745849,0.61365748,3408.2,3407.8,2.93443]
[1721235746772,0.61365748,3408.3,3408.0,2.93427]
[1721235747785,0.61365748,3408.3,3407.8,2.93443]
[1721235748084,0.61365748,3408.3,3407.4,2.3226]
[1721235748085,0.61365748,3408.3,3407.7,2.9345]
[1721235748273,3.54773748,3408.3,3407.5,2.93465]
[1721235748473,0.61365748,3408.2,3407.5,2.93465]
[1721235748660,3.54797748,3408.0,3407.3,2.93486]
[1721235748992,0.61365748,3407.9,3407.3,2.93486]
[1721235749989,0.61365748,3407.9,3407.4,2.93477]
[1721235750772,4.15124651,3408.3,3407.4,2.93477]
[1721235750773,0.61365748,3408.0,3407.8,2.93444]
[1721235750951,0.61365748,3408.1,3407.8,2.93444]
[1721235751558,0.92048622,3408.2,3407.8,2.93444]
[1721235751559,0.61365748,3408.0,3407.8,2.93444]
[1721235753900,0.61365748,3408.1,3407.8,2.93444]
[1721235754103,0.61365748,3408.2,3407.8,2.93444]
[1721235754557,0.61365748,3408.2,3407.7,2.93444]
[1721235754558,0.61365748,3408.2,3407.9,2.93435]
[1721235754765,0.61365748,3408.3,3407.9,2.93435]
[1721235755198,0.61365748,3408.3,3407.7,2.93444]
[1721235755397,0.61365748,3408.2,3407.7,2.93444]
[1721235756216,0.61365748,3408.2,3407.9,2.93435]
[1721235756517,0.61365748,3408.2,3407.7,2.93444]
[1721235757175,0.61365748,3408.3,3407.7,2.93444]
[1721235758313,0.61365748,3408.3,3407.9,2.93427]
[1721235759097,0.61365748,3408.3,3407.9,2.88427]
[1721235759606,0.61365748,3408.3,3407.7,2.93448]
[1721235760793,0.61365748,3408.3,3407.8,2.93444]
[1721235761499,0.61365748,3408.2,3407.9,2.93435]
[1721235761693,0.61365748,3408.3,3407.9,2.93435]
[1721235763504,0.61365748,3408.2,3407.9,2.93435]
[1721235763697,0.61365748,3408.3,3407.9,2.93435]
[1721235764289,0.61365748,3408.3,3407.7,2.93445]
[1721235764491,0.61365748,3408.3,3407.7,2.93446]
[1721235764786,0.61365748,3408.3,3407.9,2.93434]
[1721235765316,2.93815748,3408.4,3407.9,2.93434]
[1721235766180,0.61365748,3408.4,3407.9,2.93431]
[1721235766513,0.61365748,3408.4,3408.0,2.93426]
[1721235767602,0.61365748,3408.5,3408.1,2.9341]
[1721235767807,0.61365748,3408.5,3408.3,2.93401]
[1721235768818,0.76170518,3408.6,3408.3,2.93401]
[1721235769896,0.76170518,3408.6,3408.1,2.9341]
[1721235770228,0.61365748,3408.4,3408.2,2.93404]
[1721235770524,1.06853392,3408.6,3408.2,2.93404]
[1721235770525,0.61365748,3408.5,3408.2,2.93404]
[1721235770889,0.61365748,3408.4,3408.2,2.93404]
[1721235771118,0.61365748,3408.5,3408.2,2.93404]
[1721235771427,0.61365748,3408.5,3408.2,2.93403]
[1721235771603,0.61365748,3408.5,3408.2,0.586827]
[1721235771808,0.1480477,3408.6,3408.3,2.934]
[1721235772921,0.1480477,3408.6,3408.5,2.93384]
[1721235773231,0.1480477,3408.6,3407.7,2.537]
[1721235773232,0.1480477,3408.6,3407.7,4.8805]
[1721235773532,0.76170518,3408.6,3408.1,2.93413]
[1721235774598,0.76170518,3408.6,3408.3,2.93396]
[1721235774994,0.1480477,3408.6,3408.4,2.93391]
[1721235775199,0.76170518,3408.6,3408.4,2.93391]
[1721235776623,0.1480477,3408.6,3408.4,2.93391]
[1721235777132,0.1480477,3408.6,3408.5,2.93384]
[1721235778234,0.1480477,3408.6,3408.5,2.4659]
[1721235778422,0.1480477,3408.6,3408.2,2.4659]
[1721235778601,0.1480477,3408.6,3408.4,2.93391]
[1721235779897,0.1480477,3408.6,3408.4,2.93387]
[1721235780351,0.1480477,3408.6,3408.2,2.93403]
[1721235780641,0.1480477,3408.6,3407.9,9.8459]
[1721235780642,3.0818077,3408.6,3407.9,7.38]
[1721235780803,3.54754748,3408.5,3407.9,7.38]
[1721235781226,0.61365748,3408.4,3407.9,7.38]
[1721235781421,0.61365748,3408.4,3407.9,10.31435]
[1721235782032,0.92048622,3408.5,3407.9,10.31435]
[1721235782033,0.61365748,3408.5,3407.9,10.31435]
[1721235782229,3.69550518,3408.6,3408.0,2.93426]
[1721235782455,0.61365748,3408.5,3408.0,2.93426]
[1721235782955,0.61365748,3408.5,3408.2,2.93402]
[1721235783129,0.61365748,3408.5,3408.1,2.4554]
[1721235783462,0.61365748,3408.5,3407.9,7.38]
[1721235783463,2.93389,3408.5,3407.9,7.38]
[1721235783634,3.54754748,3408.5,3407.9,7.38]
[1721235783834,6.48145748,3408.5,3407.9,7.38]
[1721235784339,2.93394,3408.4,3407.9,7.38]
[1721235784533,2.93394,3408.4,3407.9,8.950419]
[1721235784728,2.93394,3408.4,3407.9,7.38]
[1721235785043,2.93394,3408.4,3407.8,2.93437]
[1721235785449,3.54759748,3408.4,3407.7,2.9345]
[1721235785641,3.54759748,3408.4,3407.8,2.93441]
[1721235785821,3.54759748,3408.4,3407.8,5.8688]
[1721235786023,0.61365748,3408.4,3407.9,2.93434]
[1721235786424,0.61365748,3408.3,3407.9,2.93434]
[1721235787118,0.61365748,3408.4,3407.9,2.93434]
[1721235787320,0.61365748,3408.3,3408.0,2.2843]
[1721235787622,0.61365748,3408.3,3408.2,2.9341]
[1721235787820,0.61365748,3408.4,3408.0,8.15268]
[1721235788049,0.61365748,3408.4,3408.2,2.93407]
[1721235789134,0.61365748,3408.5,3408.2,2.93407]
[1721235789336,0.61365748,3408.4,3408.2,2.93407]
[1721235789543,0.61365748,3408.5,3408.4,2.93392]
[1721235789743,0.1480477,3408.6,3408.5,2.93384]
[1721235789929,0.1480477,3408.6,3408.5,3.762245]
[1721235791429,0.1480477,3408.6,3408.5,9.233085]
[1721235794543,0.1480477,3408.6,3408.5,6.696085]
[1721235794754,0.1480477,3408.6,3408.5,5.86768]
[1721235794942,0.1480477,3408.6,3408.3,2.93394]
[1721235795379,0.1480477,3408.6,3408.0,2.93426]
[1721235795531,0.1480477,3408.6,3407.9,2.93428]
[1721235795929,3.0817977,3408.6,3407.9,2.93428]
[1721235796226,3.69545518,3408.6,3408.0,2.93425]
[1721235796653,0.61365748,3408.5,3408.0,2.93425]
[1721235797237,0.76170518,3408.6,3408.1,2.93417]
[1721235797458,0.61365748,3408.5,3408.1,2.93417]
[1721235797842,0.76170518,3408.6,3408.1,2.93417]
[1721235798575,0.61365748,3408.5,3408.1,2.93417]
[1721235798945,0.61365748,3408.5,3408.4,2.93392]
[1721235799262,0.1480477,3408.6,3408.4,2.93392]
[1721235799637,0.1480477,3408.6,3408.5,2.93384]
[1721235801049,0.1480477,3408.6,3408.5,3.520616]
[1721235801432,0.1480477,3408.6,3408.5,6.454456]
[1721235803340,0.1480477,3408.6,3408.5,9.388296]
[1721235804543,0.1480477,3408.6,3408.5,11.823096]
[1721235805073,0.1480477,3408.6,3408.5,9.388296]
[1721235805791,0.1480477,3408.6,3408.5,5.86768]
[1721235808176,0.1480477,3408.6,3408.5,8.80152]
[1721235811474,0.1480477,3408.6,3408.5,11.80152]
[1721235812883,0.1480477,3408.6,3408.5,17.01086]
[1721235813115,0.1480477,3408.6,3408.5,20.56763112]
[1721235813326,0.1480477,3408.6,3408.5,23.44181899]
[1721235813742,0.1480477,3408.6,3408.5,23.44179394]
[1721235816488,0.1480477,3408.6,3408.5,23.44179037]
[1721235816852,0.1480477,3408.6,3408.5,23.34362719]
[1721235817000,0.1480477,3408.6,3408.5,26.27746719]
[1721235817340,0.1480477,3408.6,3408.5,29.37146719]
[1721235817496,0.1480477,3408.6,3408.5,29.92146719]
[1721235817696,0.61365748,3410.1,3408.5,29.92146719]
[1721235817697,0.61365748,3410.1,3410.0,2.93255]
[1721235817910,3.03395748,3410.2,3410.1,2.93246]
[1721235818525,2.4203,3410.2,3410.1,2.93246]
[1721235822437,2.4203,3410.2,3409.9,2.93262]
[1721235822801,2.4203,3410.2,3409.3,7.38]
[1721235823003,5.38001,3410.1,3409.3,2.93308]
[1721235823299,3.06115748,3410.0,3409.3,2.93307]
[1721235823906,3.06115748,3410.0,3409.4,2.93306]
[1721235824522,3.06115748,3410.0,3409.5,2.93297]
[1721235824723,2.4475,3410.0,3409.5,2.93297]
[1721235825255,0.61365748,3410.2,3409.9,2.93258]
[1721235825394,3.06115748,3410.3,3409.9,2.93258]
[1721235825599,2.4475,3410.3,3409.8,2.93271]
[1721235825831,3.06115748,3410.3,3409.8,2.93271]
[1721235826712,3.06115748,3410.3,3409.9,2.93263]
[1721235827967,3.06115748,3410.3,3409.7,2.93273]
[1721235828129,2.93252,3410.1,3409.4,10.31305]
[1721235828454,0.61365748,3410.0,3409.4,10.31305]
[1721235828819,0.61365748,3410.0,3409.4,10.313]
[1721235829573,0.61365748,3410.0,3409.4,10.31299]
[1721235829779,3.54621748,3410.0,3409.4,7.38]
[1721235829957,3.54621748,3410.0,3409.4,10.31306]
[1721235830275,3.54621748,3410.0,3409.4,7.38]
[1721235830602,0.61365748,3409.9,3409.4,10.31306]
[1721235830717,3.54621748,3410.0,3409.4,10.31306]
[1721235831211,3.54621748,3410.0,3409.4,7.38]
[1721235831414,6.47883748,3410.0,3409.4,7.38]
[1721235831617,0.61365748,3409.9,3409.4,7.38]
[1721235831880,2.2994,3409.8,3409.4,7.38]
[1721235832027,2.93285,3409.7,3409.4,7.38]
[1721235832228,3.54662748,3409.6,3408.8,2.93351]
[1721235832460,3.54662748,3409.6,3408.9,2.93347]
[1721235832836,0.61365748,3409.6,3408.9,2.93347]
[1721235833320,0.61365748,3409.6,3408.9,5.86689]
[1721235833521,0.61365748,3409.5,3408.9,2.93342]
[1721235833760,0.61365748,3409.5,3408.7,10.31363]
[1721235833761,2.387,3409.4,3408.8,2.93356]
[1721235834152,2.387,3409.4,3409.0,2.93338]
[1721235834631,3.00065748,3409.4,3408.9,2.93349]
[1721235834831,2.387,3409.4,3408.7,10.31366]
[1721235835029,2.387,3409.4,3408.8,2.93357]
[1721235835227,2.387,3409.4,3408.9,2.93348]
[1721235835428,0.61365748,3409.3,3409.0,2.93335]
[1721235835658,0.61365748,3409.3,3409.2,2.93323]
[1721235835822,2.387,3409.4,3409.3,2.93315]
[1721235835823,3.00065748,3409.4,3409.3,2.93315]
[1721235836024,0.61365748,3409.5,3409.3,2.93315]
[1721235836551,0.61365748,3409.5,3409.2,2.93321]
[1721235836750,0.61365748,3409.4,3409.2,2.93316]
[1721235836952,0.61365748,3409.4,3409.0,2.93336]
[1721235837130,0.61365748,3409.3,3409.1,2.93325]
[1721235837336,0.61365748,3409.3,3409.0,2.93336]
[1721235837337,0.61365748,3409.4,3409.0,2.93336]
[1721235837746,0.61365748,3409.3,3409.1,2.9333]
[1721235837949,0.61365748,3409.4,3409.1,2.9333]
[1721235838381,0.61365748,3409.4,3409.2,2.93322]
[1721235838576,0.41365748,3409.4,3409.2,2.93322]
[1721235838779,0.41365748,3409.4,3408.7,7.38]
[1721235838979,3.20028622,3409.3,3408.7,10.31365]
[1721235839384,3.20028622,3409.3,3408.8,2.93358]
[1721235840257,3.20028622,3409.3,3408.9,2.93349]
[1721235840693,3.20028622,3409.3,3408.7,7.38]
[1721235840862,2.2798,3409.3,3409.0,2.93332]
[1721235841063,2.2798,3409.3,3409.0,5.86666]
[1721235841368,2.2798,3409.3,3409.1,2.9333]
[1721235842084,2.2798,3409.3,3409.2,2.93323]
[1721235842597,0.92048622,3409.4,3409.2,2.93323]
[1721235842764,0.92048622,3409.5,3409.3,2.93309]
[1721235843471,0.92048622,3409.5,3409.3,2.93308]
[1721235843670,0.92048622,3409.5,3409.3,2.93307]
[1721235844213,0.92048622,3409.4,3409.1,2.93324]
[1721235844521,0.92048622,3409.5,3409.3,2.93315]
[1721235844872,0.92048622,3409.5,3409.0,2.93336]
[1721235845068,0.92048622,3409.4,3409.0,5.8667]
[1721235845311,0.92048622,3409.4,3409.1,2.93332]
[1721235845886,0.92048622,3409.3,3409.1,2.93332]
[1721235846093,0.92048622,3409.4,3408.9,2.93343]
[1721235846510,0.92048622,3409.3,3408.9,2.93343]
[1721235846873,0.92048622,3409.3,3409.0,2.93339]
[1721235847774,0.92048622,3409.3,3409.0,2.93334]
[1721235847974,0.92048622,3409.4,3409.2,2.93323]
[1721235848275,0.92048622,3409.3,3409.2,2.93323]
[1721235848714,0.92048622,3409.4,3409.2,2.93323]
[1721235850776,0.61424902,3409.3,3409.0,2.93333]
[1721235851016,0.61406124,3409.2,3409.0,2.93333]
[1721235851418,0.61406124,3409.2,3409.1,2.93332]
[1721235853096,0.61406124,3409.2,3409.1,2.86932]
[1721235853683,0.92048622,3409.3,3409.1,2.86932]
[1721235854317,0.61391566,3409.2,3409.1,2.86932]
[1721235854551,0.61391566,3409.2,3409.1,2.93332]
[1721235855322,0.61391566,3409.4,3409.2,2.93317]
[1721235855633,0.92048622,3409.5,3409.2,2.93317]
[1721235855634,0.61391566,3409.3,3409.2,2.93317]
[1721235857329,0.92048622,3409.4,3409.2,2.93317]
[1721235858679,0.92048622,3409.4,3409.0,2.93339]
[1721235858884,0.61427232,3409.2,3409.0,2.93339]
[1721235859097,0.61427232,3409.1,3409.0,2.93339]
[1721235859540,0.61427232,3409.1,3408.8,2.93355]
[1721235859833,0.61427232,3409.1,3408.9,2.93349]
[1721235862146,0.61427232,3409.1,3408.7,7.38]
[1721235862295,2.97217232,3409.0,3408.5,2.93379]
[1721235862628,0.61427232,3408.9,3408.6,2.93374]
[1721235863083,0.61427232,3408.9,3408.4,2.93387]
[1721235863284,0.61427232,3408.8,3408.3,2.93397]
[1721235863532,0.61427232,3408.8,3407.9,9.7795]
[1721235863717,0.92048622,3408.9,3407.9,9.7795]
[1721235863718,0.61427232,3408.7,3407.9,9.7795]
[1721235863924,0.61427232,3408.7,3408.3,2.93395]
[1721235864291,0.61427232,3408.5,3408.3,2.93395]
[1721235864736,0.92048622,3408.6,3408.3,2.93395]
[1721235864737,0.61427232,3408.4,3408.3,2.93395]
[1721235865102,0.61427232,3408.5,3408.3,2.93395]
[1721235866524,0.61427232,3408.5,3408.4,2.93392]
[1721235867038,0.61427232,3408.5,3408.2,2.93401]
[1721235867518,0.61427232,3408.5,3407.9,7.38]
[1721235867519,2.89397232,3408.4,3408.0,2.93423]
[1721235867838,0.61427232,3408.3,3407.7,2.93446]
[1721235868133,6.13410622,3408.4,3407.7,2.93446]
[1721235868134,0.61427232,3408.2,3407.7,2.93446]
[1721235868393,0.61427232,3408.2,3407.8,2.93443]
[1721235868549,0.61427232,3408.1,3407.8,2.93443]
[1721235868902,0.61427232,3408.1,3407.9,2.9343]
[1721235869105,0.61427232,3408.2,3407.9,2.9343]
[1721235869706,0.61427232,3408.2,3407.8,2.93437]
[1721235869908,0.61427232,3408.2,3407.9,2.9343]
[1721235870101,0.61427232,3408.3,3407.9,2.9343]
[1721235870413,0.61427232,3408.3,3408.2,2.9341]
[1721235870804,0.61427232,3408.3,3408.2,8.873826]
[1721235871148,1.84421172,3409.1,3408.6,2.92213749]
[1721235871149,0.61427232,3408.7,3408.6,2.92213749]
[1721235871302,0.61427232,3408.8,3408.7,2.93366]
[1721235871805,0.61427232,3408.8,3408.6,2.93373]
[1721235872003,0.61427232,3408.8,3408.5,2.93383]
[1721235872441,0.61427232,3408.8,3408.6,2.93375]
[1721235872720,0.61427232,3408.7,3408.2,2.93405]
[1721235872923,0.92048622,3408.9,3408.2,2.93405]
[1721235872924,0.61427232,3408.6,3408.2,2.93405]
[1721235873249,3.07217232,3408.6,3408.4,2.93391]
[1721235873446,0.61427232,3408.6,3408.4,2.93391]
[1721235874128,0.61427232,3408.5,3408.4,2.93391]
[1721235874335,0.61427232,3408.5,3408.1,2.93417]
[1721235874528,0.61427232,3408.4,3408.1,2.93417]
[1721235875662,0.61427232,3408.3,3408.1,2.93417]
[1721235876234,0.61427232,3408.4,3408.1,2.93417]
[1721235876568,2.99847232,3408.3,3408.0,7.38]
[1721235876715,0.61427232,3408.2,3408.0,7.38]
[1721235877148,0.61427232,3408.2,3407.7,2.93452]
[1721235877330,0.61427232,3408.1,3407.7,2.93452]
[1721235877671,0.61427232,3408.1,3407.7,5.86895]
[1721235877954,0.61427232,3408.1,3407.8,2.93441]
[1721235878734,0.61427232,3408.1,3407.6,2.93455]
[1721235878923,0.61427232,3408.0,3407.6,2.93455]
[1721235879119,0.61427232,3408.1,3407.6,2.93455]
[1721235879770,0.61427232,3408.1,3407.7,2.9345]
[1721235880280,0.61427232,3408.1,3407.8,2.93442]
[1721235880441,0.61427232,3408.1,3407.9,2.93433]
[1721235880844,0.61427232,3408.2,3407.9,2.93433]
[1721235882144,0.61427232,3408.2,3408.0,2.93424]
[1721235883759,0.61427232,3408.2,3408.1,2.93418]
[1721235884250,2.99847232,3408.3,3408.1,2.93418]
[1721235884687,0.61427232,3408.3,3408.2,2.9341]
[1721235885452,0.61427232,3408.4,3408.3,2.93401]
[1721235885662,0.92048622,3408.5,3408.2,2.9341]
[1721235885905,0.92048622,3408.5,3408.4,5.86784]
[1721235885906,0.61442294,3408.5,3408.4,5.86784]
[1721235886202,0.61442294,3408.7,3408.6,2.93375]
[1721235890048,0.61442294,3408.7,3408.6,5.8675]
[1721235890406,0.61442294,3408.9,3408.8,5.86716]
[1721235890540,0.61442294,3409.1,3409.0,2.93341]
[1721235890746,0.61442294,3409.1,3409.0,5.86682]